bitfinex-derivatives/quotes_BTCF0:USTF0_20250704
["timestamp","ask_amount","ask_price","bid_price","bid_amount"]
[1751627446943,0.004,109100.0,109090.0,2.36684915]
[1751627447643,0.25429368,109100.0,109090.0,2.36684915]
[1751627447837,0.004,109100.0,109090.0,2.36684915]
[1751627448143,0.1872561,109100.0,109090.0,2.36684915]
[1751627449537,0.004,109100.0,109090.0,2.36684915]
[1751627450849,0.004,109100.0,109090.0,2.72764915]
[1751627452343,0.004,109100.0,109090.0,2.78250219]
[1751627454338,0.004,109100.0,109090.0,2.72764915]
[1751627454540,0.02624502,109100.0,109090.0,2.72764915]
[1751627455646,0.02624502,109100.0,109090.0,2.43735547]
[1751627455949,0.02624502,109100.0,109090.0,2.68764915]
[1751627457451,0.02624502,109100.0,109090.0,2.74250219]
[1751627459146,0.02624502,109100.0,109090.0,2.68764915]
[1751627459449,0.02224502,109100.0,109090.0,2.68664915]
[1751627459650,0.02324502,109100.0,109090.0,2.68664915]
[1751627461355,0.02324502,109100.0,109090.0,2.68724915]
[1751627462453,0.02324502,109100.0,109090.0,2.74210219]
[1751627463053,0.02324502,109100.0,109090.0,2.99239587]
[1751627463450,0.02324502,109100.0,109090.0,2.74210219]
[1751627464155,0.001,109100.0,109090.0,2.76047471]
[1751627464650,0.001,109100.0,109090.0,2.51018103]
[1751627464843,0.001,109100.0,109090.0,2.76047454]
[1751627466357,0.02328919,109100.0,109090.0,2.74212073]
[1751627469258,0.001,109100.0,109090.0,2.76047454]
[1751627470456,0.001,109100.0,109090.0,3.01076822]
[1751627471156,0.3723497,109120.0,109110.0,0.1832398]
[1751627471360,1.58658821,109120.0,109110.0,0.76913804]
[1751627471560,1.83688189,109120.0,109110.0,0.76913804]
[1751627471950,0.37415851,109120.0,109110.0,1.77023172]
[1751627472157,0.345223,109120.0,109110.0,0.8757823]
[1751627472462,0.36738104,109120.0,109110.0,1.56222453]
[1751627472665,0.19115804,109120.0,109110.0,1.60322453]
[1751627472869,0.19115804,109120.0,109110.0,1.24322453]
[1751627473166,0.37438104,109120.0,109110.0,1.60322453]
[1751627473374,0.19015804,109120.0,109110.0,1.60322453]
[1751627473766,0.168,109120.0,109110.0,1.54837598]
[1751627473966,0.191223,109120.0,109110.0,1.54837598]
[1751627474568,0.191223,109120.0,109110.0,1.62160154]
[1751627474767,0.188223,109120.0,109110.0,1.62060154]
[1751627476167,0.188223,109120.0,109110.0,1.37030786]
[1751627476366,0.188223,109120.0,109110.0,1.62060154]
[1751627476565,0.188223,109120.0,109110.0,1.62976968]
[1751627476766,0.43851668,109120.0,109110.0,1.62976968]
[1751627477869,0.188223,109120.0,109110.0,1.62976968]
[1751627478370,0.21035714,109120.0,109110.0,1.26654412]
[1751627480172,0.21035714,109120.0,109110.0,1.01625044]
[1751627480369,0.46065082,109120.0,109110.0,1.01625044]
[1751627480768,0.21035714,109120.0,109110.0,1.26654412]
[1751627481073,0.46065082,109120.0,109110.0,1.26654412]
[1751627483375,0.46065082,109120.0,109110.0,1.26654286]
[1751627483575,0.21035714,109120.0,109110.0,1.26654286]
[1751627484077,0.46065082,109120.0,109110.0,1.26654286]
[1751627484475,0.49285082,109120.0,109110.0,1.26654286]
[1751627485282,0.49285082,109120.0,109110.0,1.01624918]
[1751627485481,0.49285082,109120.0,109110.0,1.26654286]
[1751627485982,0.24255714,109120.0,109110.0,1.26654286]
[1751627486181,0.30515714,109120.0,109110.0,1.19654286]
[1751627486384,0.55545082,109120.0,109110.0,1.19654286]
[1751627487586,0.55545082,109120.0,109110.0,0.94624918]
[1751627487786,0.55545082,109120.0,109110.0,1.19654286]
[1751627488187,0.30515714,109120.0,109110.0,1.19654286]
[1751627490386,0.55545082,109120.0,109110.0,0.73427472]
[1751627491487,0.53331668,109120.0,109110.0,0.78904258]
[1751627491784,0.53331668,109120.0,109110.0,0.5387489]
[1751627492087,0.53331668,109120.0,109110.0,0.78904258]
[1751627492588,0.53331668,109120.0,109110.0,0.78904299]
[1751627493687,0.54331668,109120.0,109110.0,0.78904299]
[1751627495081,0.283023,109120.0,109110.0,0.78904299]
[1751627495604,0.283023,109120.0,109110.0,0.78904305]
[1751627495782,0.283023,109120.0,109110.0,0.82214305]
[1751627496388,0.02714338,109120.0,109110.0,1.55294305]
[1751627496588,0.02714338,109120.0,109110.0,1.61674305]
[1751627496888,0.02714338,109120.0,109110.0,1.62608023]
[1751627497190,0.02714338,109120.0,109110.0,1.87637391]
[1751627503284,0.02614338,109120.0,109110.0,1.87637391]
[1751627503493,0.02514338,109120.0,109110.0,1.87637391]
[1751627504190,0.02414338,109120.0,109110.0,1.87637391]
[1751627504488,0.02514338,109120.0,109110.0,1.87637391]
[1751627508184,0.02514338,109120.0,109110.0,1.87637334]
[1751627508880,0.02514338,109120.0,109110.0,1.37578598]
[1751627509085,0.20836638,109120.0,109110.0,1.27607966]
[1751627509285,0.02514338,109120.0,109110.0,1.2213118]
[1751627509689,0.20836638,109120.0,109110.0,1.2213118]
[1751627509893,0.45866006,109120.0,109110.0,1.2213118]
[1751627510192,0.45866006,109120.0,109110.0,1.2013118]
[1751627510389,0.45859186,109120.0,109110.0,1.2013118]
[1751627510590,0.20829818,109120.0,109110.0,1.2013118]
[1751627511395,0.20829818,109120.0,109110.0,0.95101812]
[1751627511595,0.20829818,109120.0,109110.0,1.2013118]
[1751627513398,0.186223,109120.0,109110.0,1.2013118]
[1751627513597,0.20829743,109120.0,109110.0,1.2013118]
[1751627513896,0.02507443,109120.0,109110.0,1.25607966]
[1751627514293,0.20829743,109120.0,109110.0,1.2013118]
[1751627514492,0.02507443,109120.0,109110.0,1.2013118]
[1751627516293,0.02507443,109120.0,109110.0,0.8405118]
[1751627516598,0.02507443,109120.0,109110.0,1.2013118]
[1751627517397,0.02507397,109120.0,109110.0,1.2013118]
[1751627519201,0.02507397,109120.0,109110.0,1.25607966]
[1751627520299,0.20829687,109120.0,109110.0,1.25607966]
[1751627520500,0.02507397,109120.0,109110.0,1.50637334]
[1751627520699,0.02507397,109120.0,109110.0,1.87637334]
[1751627520900,0.02507397,109120.0,109110.0,1.62607966]
[1751627522002,0.02507397,109120.0,109110.0,1.25607966]
[1751627522198,0.02507397,109120.0,109110.0,1.61607966]
[1751627523506,0.02507397,109120.0,109110.0,1.60533852]
[1751627525403,0.02507397,109120.0,109110.0,1.8556322]
[1751627526300,0.02507397,109120.0,109110.0,1.4956322]
[1751627526505,0.02507397,109120.0,109110.0,1.8356322]
[1751627526906,0.02507397,109120.0,109110.0,1.58533852]
[1751627528405,0.02507397,109120.0,109110.0,1.8356322]
[1751627532204,0.02507397,109120.0,109110.0,1.4956322]
[1751627532405,0.02507397,109120.0,109110.0,1.8356322]
[1751627532808,0.02507397,109120.0,109110.0,1.58533852]
[1751627533112,0.02507397,109120.0,109110.0,1.24533852]
[1751627533311,0.02507397,109120.0,109110.0,1.60533852]
[1751627534008,0.02507397,109120.0,109110.0,0.99504484]
[1751627534214,0.02507397,109120.0,109110.0,1.57533852]
[1751627535415,0.20829697,109120.0,109110.0,1.57533852]
[1751627537007,0.02507397,109120.0,109110.0,1.57533852]
[1751627537315,0.20829697,109120.0,109110.0,1.57533852]
[1751627537510,0.02507397,109120.0,109110.0,1.57533852]
[1751627538515,0.30409697,109120.0,109110.0,1.21303852]
[1751627538716,0.55439065,109120.0,109110.0,1.21303852]
[1751627540218,0.53231668,109120.0,109110.0,1.23149622]
[1751627540818,0.282023,109120.0,109110.0,1.23149622]
[1751627541118,0.53231668,109120.0,109110.0,0.98120254]
[1751627541318,0.53231668,109120.0,109110.0,1.23149622]
[1751627542616,0.53231668,109120.0,109110.0,1.26379622]
[1751627543721,0.282023,109120.0,109110.0,1.26379622]
[1751627544016,1.51341036,109120.0,109110.0,0.54646536]
[1751627544222,1.012823,109120.0,109110.0,0.4732398]
[1751627544418,1.53556119,109120.0,109110.0,0.52810541]
[1751627544620,1.16556119,109120.0,109110.0,0.52810541]
[1751627545123,1.47556119,109120.0,109110.0,0.52810541]
[1751627545618,1.48463003,109120.0,109110.0,0.52810541]
[1751627546320,1.48463003,109120.0,109110.0,0.4732398]
[1751627551834,1.17463003,109120.0,109110.0,0.29]
[1751627552136,1.51463003,109120.0,109110.0,0.29]
[1751627553136,1.49463003,109120.0,109110.0,0.4732398]
[1751627553436,1.50463003,109120.0,109110.0,0.4732398]
[1751627553637,1.50463003,109120.0,109110.0,0.29]
[1751627554433,2.33771003,109120.0,109110.0,0.29]
[1751627555433,2.33771003,109120.0,109110.0,0.4732397]
[1751627556440,2.33771003,109120.0,109110.0,0.29]
[1751627556735,0.1832398,109110.0,109100.0,0.45]
[1751627557041,0.1832566,109100.0,109090.0,0.87498085]
[1751627557240,1.72007028,109100.0,109090.0,0.65498085]
[1751627557540,1.72007028,109100.0,109090.0,0.90527453]
[1751627559239,1.74317224,109100.0,109090.0,0.85440892]
[1751627559539,1.72107028,109100.0,109090.0,0.85440892]
[1751627560339,1.72107028,109100.0,109090.0,0.85740892]
[1751627560940,1.72107028,109100.0,109090.0,0.88980892]
[1751627561438,1.72107028,109100.0,109090.0,0.63951524]
[1751627561640,1.72107028,109100.0,109090.0,0.88980892]
[1751627561936,1.4707766,109100.0,109090.0,0.88980892]
[1751627562140,1.72107028,109100.0,109090.0,0.88980892]
[1751627562540,1.72107028,109100.0,109090.0,0.63951524]
[1751627562842,1.72107028,109100.0,109090.0,0.88980892]
[1751627563941,1.72107028,109100.0,109090.0,0.94467453]
[1751627564542,1.4707766,109100.0,109090.0,0.88980892]
[1751627564743,1.72107028,109100.0,109090.0,0.88980892]
[1751627565335,1.72107028,109100.0,109090.0,0.95300892]
[1751627565535,1.62847028,109100.0,109090.0,0.95300892]
[1751627566843,1.3781766,109100.0,109090.0,0.95300892]
[1751627567043,1.62847028,109100.0,109090.0,0.95300892]
[1751627568445,1.6504829,109100.0,109090.0,0.95300892]
[1751627569146,1.62847028,109100.0,109090.0,0.95300892]
[1751627570248,1.65048759,109100.0,109090.0,0.95300892]
[1751627570949,1.40019391,109100.0,109090.0,0.95300892]
[1751627571150,1.65048747,109100.0,109090.0,0.95300892]
[1751627573246,1.62847028,109100.0,109090.0,1.00787453]
[1751627578653,1.62847028,109100.0,109090.0,0.75758085]
[1751627578849,1.62847028,109100.0,109090.0,1.00787453]
[1751627579250,1.62847028,109100.0,109090.0,0.75758085]
[1751627579555,1.62847028,109100.0,109090.0,1.00787453]
[1751627584365,1.26767028,109100.0,109090.0,1.00787453]
[1751627584567,1.62847028,109100.0,109090.0,1.00787453]
[1751627586269,1.65053041,109100.0,109090.0,1.00787453]
[1751627586867,0.81741041,109100.0,109090.0,1.00787453]
[1751627587068,1.64929041,109100.0,109090.0,1.00787453]
[1751627590567,1.39899673,109100.0,109090.0,1.00787453]
[1751627590766,1.64929041,109100.0,109090.0,1.00787453]
[1751627599275,1.64929041,109100.0,109090.0,0.34127045]
[1751627599276,1.65799777,109100.0,109090.0,0.34127045]
[1751627599469,0.1832734,109090.0,109080.0,0.07322556]
[1751627599675,0.1832902,109080.0,109070.0,0.74753256]
[1751627599876,1.90709756,109080.0,109070.0,0.37422556]
[1751627600382,1.97119756,109080.0,109070.0,0.301]
[1751627601071,1.97119756,109080.0,109070.0,0.27]
[1751627601380,2.31341589,109080.0,109070.0,0.27]
[1751627601581,2.31341589,109080.0,109070.0,0.275]
[1751627602375,2.31341589,109080.0,109070.0,0.272]
[1751627603281,2.31641589,109080.0,109070.0,0.273]
[1751627604776,1.99641589,109080.0,109070.0,0.273]
[1751627604976,2.31641589,109080.0,109070.0,0.273]
[1751627605577,2.32641589,109080.0,109070.0,0.273]
[1751627607483,2.33574644,109080.0,109070.0,0.273]
[1751627608382,2.11574644,109080.0,109070.0,0.273]
[1751627609084,2.37574644,109080.0,109070.0,0.273]
[1751627609277,2.35352811,109080.0,109070.0,0.273]
[1751627609583,2.02352811,109080.0,109070.0,0.273]
[1751627609784,2.31352811,109080.0,109070.0,0.273]
[1751627611185,2.30419756,109080.0,109070.0,0.273]
[1751627611485,1.74410388,109080.0,109070.0,0.70660068]
[1751627611881,1.72410388,109080.0,109070.0,0.70660068]
[1751627613386,1.72410388,109080.0,109070.0,0.456307]
[1751627613588,1.72410388,109080.0,109070.0,0.70660068]
[1751627613787,0.89258388,109080.0,109070.0,0.70660068]
[1751627614086,1.72434388,109080.0,109070.0,0.80300068]
[1751627614487,1.72434388,109080.0,109070.0,0.552707]
[1751627614786,1.62910388,109080.0,109070.0,0.80300068]
[1751627615280,1.62910388,109080.0,109070.0,0.273]
[1751627615281,1.29797124,109080.0,109070.0,0.273]
[1751627615477,0.1833237,109060.0,109050.0,0.3223685]
[1751627615678,1.87679106,109060.0,109050.0,0.6323685]
[1751627615887,1.90819106,109060.0,109050.0,0.6323685]
[1751627616389,1.90819106,109060.0,109050.0,0.5865338]
[1751627616587,1.90819106,109060.0,109050.0,0.5895338]
[1751627616786,1.91726303,109060.0,109050.0,0.5895338]
[1751627616986,1.90919106,109060.0,109050.0,0.5935338]
[1751627617884,1.98089573,109060.0,109050.0,0.5935338]
[1751627618587,1.90919106,109060.0,109050.0,0.5935338]
[1751627619786,1.65840761,109060.0,109050.0,0.5935338]
[1751627622494,1.4086037,109060.0,109050.0,0.5935338]
[1751627622792,2.30149555,109060.0,109050.0,0.007]
[1751627623100,3.14234755,109060.0,109050.0,0.007]
[1751627623301,0.1833574,109040.0,109030.0,0.14809836]
[1751627623593,1.96012131,109040.0,109030.0,0.29263427]
[1751627623791,2.32092131,109040.0,109030.0,0.29263427]
[1751627623991,2.35352131,109040.0,109030.0,0.08183427]
[1751627624198,2.41712131,109040.0,109030.0,0.08183427]
[1751627625091,2.41712131,109040.0,109030.0,0.00183427]
[1751627625293,2.41712131,109040.0,109030.0,0.29183427]
[1751627625690,2.41812131,109040.0,109030.0,0.29383427]
[1751627626291,2.09812131,109040.0,109030.0,0.29383427]
[1751627626795,2.09812131,109040.0,109030.0,0.29583427]
[1751627631495,1.8483174,109040.0,109030.0,0.29583427]
[1751627631697,2.09812131,109040.0,109030.0,0.29583427]
[1751627632100,2.43812131,109040.0,109030.0,0.29583427]
[1751627632499,1.71652131,109040.0,109030.0,0.29583427]
[1751627632698,2.07732131,109040.0,109030.0,0.29583427]
[1751627633702,0.9813574,109040.0,109030.0,0.29583427]
[1751627633900,0.9813574,109040.0,109030.0,0.76021238]
[1751627633901,1.3695974,109040.0,109030.0,0.76021238]
[1751627634096,1.3695974,109040.0,109030.0,0.79131238]
[1751627635001,1.3695974,109040.0,109030.0,0.54150847]
[1751627636102,1.61940131,109040.0,109030.0,0.54150847]
[1751627639101,1.61940131,109040.0,109030.0,0.35813427]
[1751627639403,1.98020131,109040.0,109030.0,0.54150847]
[1751627639601,1.98020131,109040.0,109030.0,0.35813427]
[1751627645312,1.7303974,109040.0,109030.0,0.35813427]
[1751627645501,1.98020131,109040.0,109030.0,0.35813427]
[1751627645808,1.7303974,109040.0,109030.0,0.35813427]
[1751627646001,1.98020131,109040.0,109030.0,0.35813427]
[1751627646611,1.7303974,109040.0,109030.0,0.35813427]
[1751627646812,1.98020131,109040.0,109030.0,0.35813427]
[1751627650916,1.98020131,109040.0,109030.0,0.54150847]
[1751627651420,1.98020131,109040.0,109030.0,0.35813427]
[1751627654316,1.98020131,109040.0,109030.0,0.39479702]
[1751627654520,2.00469386,109040.0,109030.0,0.35813427]
[1751627658216,2.03729386,109040.0,109030.0,0.35813427]
[1751627659024,2.03729773,109040.0,109030.0,0.35813427]
[1751627659624,2.03729773,109040.0,109030.0,0.54150847]
[1751627659824,2.287261,109040.0,109030.0,0.54150847]
[1751627660726,2.287261,109040.0,109030.0,0.35813427]
[1751627662525,2.287261,109040.0,109030.0,0.54150847]
[1751627662926,2.287261,109040.0,109030.0,0.35813427]
[1751627663827,2.287261,109040.0,109030.0,0.54150857]
[1751627664325,1.78749382,109040.0,109030.0,0.54150857]
[1751627664529,2.03737741,109040.0,109030.0,0.54150857]
[1751627664923,2.287261,109040.0,109030.0,0.54150857]
[1751627665224,2.287261,109040.0,109030.0,0.57350857]
[1751627665821,2.284941,109040.0,109030.0,0.57350857]
[1751627666616,1.442021,109040.0,109030.0,0.57350857]
[1751627666821,2.284941,109040.0,109030.0,0.57350857]
[1751627668029,1.78517382,109040.0,109030.0,0.57350857]
[1751627668230,1.924141,109040.0,109030.0,0.57350857]
[1751627668423,1.67425741,109040.0,109030.0,0.57350857]
[1751627669323,1.42437382,109040.0,109030.0,0.57350857]
[1751627669524,1.67425741,109040.0,109030.0,0.57350857]
[1751627671732,1.33425741,109040.0,109030.0,0.57350857]
[1751627675820,1.30165741,109040.0,109030.0,0.82339216]
[1751627676231,1.30165741,109040.0,109030.0,0.57350857]
[1751627676733,1.30165741,109040.0,109030.0,0.82339216]
[1751627676933,1.584041,109040.0,109030.0,0.82339216]
[1751627677233,1.584041,109040.0,109030.0,0.57350857]
[1751627686838,1.582041,109040.0,109030.0,0.57350857]
[1751627687944,1.33215741,109040.0,109030.0,0.57350857]
[1751627688742,0.49123741,109040.0,109030.0,0.57350857]
[1751627694443,0.24135382,109040.0,109030.0,0.57350857]
[1751627694644,0.49123741,109040.0,109030.0,0.57350857]
[1751627699540,0.49123741,109040.0,109030.0,0.82339216]
[1751627699741,0.73898352,109060.0,109040.0,0.1833574]
[1751627699742,1.36510933,109060.0,109040.0,0.1833574]
[1751627699944,0.1833406,109050.0,109040.0,1.38114411]
[1751627700244,0.1933406,109050.0,109040.0,1.9918277]
[1751627700443,0.1933406,109050.0,109040.0,1.31610641]
[1751627700745,0.44322419,109050.0,109040.0,1.56599]
[1751627701240,0.44322419,109050.0,109040.0,1.26111289]
[1751627701745,0.1943406,109050.0,109040.0,1.51199648]
[1751627702146,0.1943406,109050.0,109040.0,1.87199648]
[1751627704047,0.1843406,109050.0,109040.0,1.87199648]
[1751627705251,0.001,109050.0,109040.0,1.87199648]
[1751627705438,0.1843406,109050.0,109040.0,1.87199648]
[1751627705643,0.1843406,109050.0,109040.0,1.92699]
[1751627710952,0.1843406,109050.0,109040.0,1.91699]
[1751627711354,0.1843406,109050.0,109040.0,1.16722282]
[1751627711540,0.1843406,109050.0,109040.0,1.91699]
[1751627712552,0.1843406,109050.0,109040.0,1.86199648]
[1751627714450,0.1843406,109050.0,109040.0,1.91699]
[1751627716448,0.1843406,109050.0,109040.0,1.65699]
[1751627716649,0.1843406,109050.0,109040.0,1.88699]
[1751627717447,0.1843406,109050.0,109040.0,1.52619]
[1751627717652,0.1843406,109050.0,109040.0,1.88699]
[1751627718353,0.1843406,109050.0,109040.0,1.56699]
[1751627718553,0.1843406,109050.0,109040.0,1.82199648]
[1751627719355,0.1843406,109050.0,109040.0,1.83274441]
[1751627719655,0.45605482,109050.0,109040.0,1.83274441]
[1751627722360,0.43422419,109050.0,109040.0,1.83274441]
[1751627722658,0.45605976,109050.0,109040.0,1.33297723]
[1751627722861,0.45605976,109050.0,109040.0,1.58286082]
[1751627723258,0.45605976,109050.0,109040.0,1.37286082]
[1751627724460,0.20617617,109050.0,109040.0,1.37286082]
[1751627724662,0.45605976,109050.0,109040.0,1.37286082]
[1751627724962,0.45605976,109050.0,109040.0,1.62274441]
[1751627725761,0.45605976,109050.0,109040.0,1.52274441]
[1751627725961,0.45605976,109050.0,109040.0,1.52274476]
[1751627726163,0.45605976,109050.0,109040.0,1.87274476]
[1751627726862,0.20617617,109050.0,109040.0,1.62274476]
[1751627727062,0.45605976,109050.0,109040.0,1.90274476]
[1751627727262,0.45605976,109050.0,109040.0,1.83274476]
[1751627729152,0.45605976,109050.0,109040.0,1.88773828]
[1751627729761,0.20617617,109050.0,109040.0,1.88773828]
[1751627729960,0.45605976,109050.0,109040.0,1.88773828]
[1751627730561,0.20617617,109050.0,109040.0,1.88773828]
[1751627730959,0.20621663,109050.0,109040.0,1.88773828]
[1751627731656,0.0458275,109070.0,109050.0,0.0916636]
[1751627731862,0.68784761,109070.0,109060.0,0.7380542]
[1751627732066,0.9377312,109070.0,109060.0,1.49430248]
[1751627732266,0.64201721,109070.0,109060.0,1.18945567]
[1751627732959,0.64501721,109070.0,109060.0,1.18945567]
[1751627733667,0.8949008,109070.0,109060.0,0.93957208]
[1751627733864,0.8959008,109070.0,109060.0,1.18945567]
[1751627734065,0.9593008,109070.0,109060.0,1.18945567]
[1751627734465,0.9593008,109070.0,109060.0,1.19045567]
[1751627734666,1.03312613,109070.0,109060.0,1.19045567]
[1751627736366,1.03312613,109070.0,109060.0,1.15935567]
[1751627736570,1.39392613,109070.0,109060.0,0.76625567]
[1751627737371,1.39392613,109070.0,109060.0,0.51637208]
[1751627737672,1.39392613,109070.0,109060.0,0.76625567]
[1751627738166,1.39392613,109070.0,109060.0,0.51637208]
[1751627738370,1.39392613,109070.0,109060.0,0.76625567]
[1751627739769,1.39392613,109070.0,109060.0,0.51637208]
[1751627739970,1.39392613,109070.0,109060.0,0.76625567]
[1751627741569,1.39392613,109070.0,109060.0,0.76625457]
[1751627742370,1.39392613,109070.0,109060.0,0.30174718]
[1751627742571,1.63380972,109070.0,109060.0,0.29174718]
[1751627743671,1.38392613,109070.0,109060.0,0.29174718]
[1751627744066,1.63380972,109070.0,109060.0,0.29174718]
[1751627744273,1.38392613,109070.0,109060.0,0.29174718]
[1751627744575,1.38383136,109070.0,109060.0,0.29174718]
[1751627747580,1.38383136,109070.0,109060.0,0.47507098]
[1751627751990,1.38383136,109070.0,109060.0,0.4643238]
[1751627752291,1.38383136,109070.0,109060.0,0.47507173]
[1751627760193,1.38383136,109070.0,109060.0,0.29174793]
[1751627760788,1.38383136,109070.0,109060.0,0.47507173]
[1751627762397,1.38383136,109070.0,109060.0,0.50757173]
[1751627762700,1.38383136,109070.0,109060.0,0.50757172]
[1751627765197,1.02303136,109070.0,109060.0,0.50757172]
[1751627765401,1.38383136,109070.0,109060.0,0.50757172]
[1751627768501,1.38383136,109070.0,109060.0,0.04424792]
[1751627768806,1.38383136,109070.0,109060.0,0.10174792]
[1751627768997,1.38383136,109070.0,109060.0,0.10174793]
[1751627769905,1.02303136,109070.0,109060.0,0.10174793]
[1751627770203,1.38383136,109070.0,109060.0,0.10174793]
[1751627770606,2.22271136,109070.0,109060.0,0.10174793]
[1751627770797,2.47259495,109070.0,109060.0,0.10174793]
[1751627771701,2.22271136,109070.0,109060.0,0.10174793]
[1751627772406,2.22271136,109070.0,109060.0,0.15671115]
[1751627772608,2.22271136,109070.0,109060.0,0.29174793]
[1751627774707,2.47259495,109070.0,109060.0,0.29174793]
[1751627775706,2.22271136,109070.0,109060.0,0.29174793]
[1751627778207,2.22271136,109070.0,109060.0,0.281]
[1751627778408,2.22271136,109070.0,109060.0,0.29174793]
[1751627780504,2.22271136,109070.0,109060.0,0.10174793]
[1751627781306,2.22271136,109070.0,109060.0,0.091]
[1751627781512,2.22271136,109070.0,109060.0,0.10174793]
[1751627781813,2.22271136,109070.0,109060.0,0.15671115]
[1751627782710,2.47259495,109070.0,109060.0,0.15671115]
[1751627783216,0.1833237,109060.0,109050.0,0.41496322]
[1751627783512,0.1833237,109060.0,109050.0,0.3]
[1751627783513,1.78005251,109060.0,109050.0,0.3]
[1751627783714,1.53016892,109060.0,109050.0,0.3]
[1751627784707,1.53116892,109060.0,109050.0,0.3]
[1751627785309,1.53416892,109060.0,109050.0,0.301]
[1751627788518,1.51239088,109060.0,109050.0,0.301]
[1751627788718,1.5341504,109060.0,109050.0,0.301]
[1751627791217,1.2441504,109060.0,109050.0,0.301]
[1751627791419,1.4841504,109060.0,109050.0,0.301]
[1751627792222,1.8449504,109060.0,109050.0,0.301]
[1751627799328,1.8449504,109060.0,109050.0,0.051]
[1751627802031,1.8449504,109060.0,109050.0,0.281]
[1751627804327,1.8449504,109060.0,109050.0,0.071]
[1751627808227,1.8649504,109060.0,109050.0,0.081]
[1751627808832,1.8649504,109060.0,109050.0,0.001]
[1751627813333,1.8649504,109060.0,109050.0,0.301]
[1751627813543,2.11483399,109060.0,109050.0,0.05871398]
[1751627813738,0.1833568,109040.0,109030.0,0.11889749]
[1751627813932,2.5733235,109040.0,109030.0,0.37679749]
[1751627814132,2.6686235,109040.0,109030.0,0.32183427]
[1751627814340,2.6686235,109040.0,109030.0,0.35513427]
[1751627815442,2.6696235,109040.0,109030.0,0.35713427]
[1751627816936,2.67900942,109040.0,109030.0,0.35713427]
[1751627817139,2.67900942,109040.0,109030.0,0.35813427]
[1751627817535,2.67900942,109040.0,109030.0,0.42383427]
[1751627823736,2.67900942,109040.0,109030.0,0.16383427]
[1751627824748,2.58370942,109040.0,109030.0,0.16383427]
[1751627825149,2.58370942,109040.0,109030.0,0.39383427]
[1751627827055,2.61500942,109040.0,109030.0,0.39383427]
[1751627832446,2.67690942,109040.0,109030.0,0.29483427]
[1751627833151,2.92679301,109040.0,109030.0,0.29483427]
[1751627833359,2.67690942,109040.0,109030.0,0.00483427]
[1751627842173,2.67690942,109040.0,109030.0,0.05979749]
[1751627842873,2.67690942,109040.0,109030.0,0.30483427]
[1751627843175,2.67690942,109040.0,109030.0,0.35979749]
[1751627849373,2.67690942,109040.0,109030.0,0.30483427]
[1751627851878,2.67690942,109040.0,109030.0,0.00483427]
[1751627853879,2.92679301,109040.0,109030.0,0.35979749]
[1751627854079,3.15995301,109040.0,109030.0,0.31846438]
[1751627854388,3.15995301,109040.0,109030.0,0.28602468]
[1751627854574,3.21496891,109040.0,109030.0,0.01363011]
[1751627854775,0.1833908,109020.0,109010.0,0.11976322]
[1751627854976,2.5824775,109020.0,109010.0,0.3348]
[1751627855179,2.6754775,109020.0,109010.0,0.3348]
[1751627856085,2.6764775,109020.0,109010.0,0.3368]
[1751627857987,2.6764775,109020.0,109010.0,0.3378]
[1751627858897,1.9548775,109020.0,109010.0,0.3378]
[1751627859189,2.6764775,109020.0,109010.0,0.3378]
[1751627859692,2.6764775,109020.0,109010.0,0.3056]
[1751627860294,1.85671032,109020.0,109010.0,0.3056]
[1751627860491,2.7164775,109020.0,109010.0,0.3688]
[1751627861089,2.69471798,109020.0,109010.0,0.3688]
[1751627862495,2.71640801,109020.0,109010.0,0.3688]
[1751627862691,2.68590801,109020.0,109010.0,0.3688]
[1751627863691,2.65500801,109020.0,109010.0,0.3688]
[1751627865790,2.44500801,109020.0,109010.0,0.3688]
[1751627865990,2.60500801,109020.0,109010.0,0.3688]
[1751627866698,2.10524083,109020.0,109010.0,0.3688]
[1751627866996,2.60500801,109020.0,109010.0,0.3688]
[1751627871595,2.24420801,109020.0,109010.0,0.3688]
[1751627872500,1.40824801,109020.0,109010.0,0.3688]
[1751627872699,2.24424801,109020.0,109010.0,0.3688]
[1751627872899,2.24413298,109020.0,109010.0,0.3688]
[1751627875503,2.24413298,109020.0,109010.0,0.0988]
[1751627875803,2.24413298,109020.0,109010.0,0.1688]
[1751627876104,2.31043298,109020.0,109010.0,0.1688]
[1751627880103,2.31043298,109020.0,109010.0,0.0988]
[1751627880310,2.31043298,109020.0,109010.0,0.0356]
[1751627883206,2.56031657,109020.0,109010.0,0.003]
[1751627884208,2.56031657,109020.0,109010.0,0.313]
[1751627885914,2.92111657,109020.0,109010.0,0.313]
[1751627894517,2.89954157,109020.0,109010.0,0.313]
[1751627895218,2.89954157,109020.0,109010.0,0.003]
[1751627905728,3.13262157,109020.0,109010.0,0.003]
[1751627906834,2.41102157,109020.0,109010.0,0.003]
[1751627907134,3.13262157,109020.0,109010.0,0.003]
[1751627914332,3.13262157,109020.0,109010.0,0.123]
[1751627915535,2.41102157,109020.0,109010.0,0.123]
[1751627915739,3.13262157,109020.0,109010.0,0.123]
[1751627919343,3.18753029,109020.0,109010.0,0.123]
[1751627921047,3.13262157,109020.0,109010.0,0.123]
[1751627921538,2.41102157,109020.0,109010.0,0.123]
[1751627921843,3.13262157,109020.0,109010.0,0.123]
[1751627925447,3.13262157,109020.0,109010.0,0.003]
[1751627926649,3.18766848,109020.0,109010.0,0.003]
[1751627926947,3.18766848,109020.0,109010.0,0.0362]
[1751627928654,1.86870489,109020.0,109010.0,0.0362]
[1751627928950,2.83964489,109020.0,109010.0,0.1767]
[1751627929352,2.78459798,109020.0,109010.0,0.1767]
[1751627929649,2.78455798,109020.0,109010.0,0.1767]
[1751627930855,2.78455798,109020.0,109010.0,0.0967]
[1751627931151,2.78455798,109020.0,109010.0,0.1667]
[1751627937156,1.71575798,109020.0,109010.0,0.1667]
[1751627937355,2.78451798,109020.0,109010.0,0.1667]
[1751627940761,1.71575798,109020.0,109010.0,0.1667]
[1751627940967,2.78443798,109020.0,109010.0,0.1667]
[1751627944366,2.78443798,109020.0,109010.0,0.3667]
[1751627949473,2.83948489,109020.0,109010.0,0.3667]
[1751627950169,1.27103771,109020.0,109010.0,0.3667]
[1751627950375,2.06275798,109020.0,109010.0,0.5501071]
[1751627951068,0.43427439,109020.0,109010.0,0.83668417]
[1751627951273,1.27979439,109020.0,109010.0,0.83668417]
[1751627951670,0.44427439,109020.0,109010.0,0.83668417]
[1751627951972,1.27979439,109020.0,109010.0,0.83668417]
[1751627952774,0.44427439,109020.0,109010.0,0.83668417]
[1751627952967,1.27979439,109020.0,109010.0,0.83668417]
[1751627956477,0.1943908,109020.0,109010.0,0.83668417]
[1751627956684,1.27967439,109020.0,109010.0,0.83668417]
[1751627956877,1.0297908,109020.0,109010.0,0.89172439]
[1751627957078,1.0297908,109020.0,109010.0,0.83668417]